fUSD/lending_fUSD_20240924
["ID","MTS","AMOUNT","RATE_DAILY","PERIOD"]
[339037421,1727162908006,150.0,0.00022,120]
[339037422,1727162908673,150.0,0.00022,120]
[339037423,1727162909326,150.0,0.00022,120]
[339037424,1727162909591,150.0,0.00022,120]
[339037425,1727162909988,150.0,0.00022,120]
[339037426,1727162910679,150.0,0.00022,120]
[339037427,1727162911370,150.0,0.00022,120]
[339037428,1727162911884,150.0,0.00022,120]
[339037429,1727162912322,150.0,0.00022,120]
[339037430,1727162912849,150.0,0.00022,120]
[339037431,1727162913363,150.0,0.00022,120]
[339037432,1727162913830,150.0,0.00022,120]
[339037433,1727162914330,150.0,0.00022,120]
[339037434,1727162914813,150.0,0.00022,120]
[339037435,1727162915263,150.0,0.00022,120]
[339037436,1727162915778,150.0,0.00022,120]
[339037438,1727162916422,150.0,0.00022,120]
[339037439,1727162916709,150.0,0.00022,120]
[339037440,1727162917183,150.0,0.00022,120]
[339037441,1727162917689,150.0,0.00022,120]
[339037442,1727162918196,150.0,0.00022,120]
[339037443,1727162918630,150.0,0.00022,120]
[339037444,1727162919122,150.0,0.00022,120]
[339037445,1727162919631,150.0,0.00022,120]
[339037446,1727162920185,150.0,0.00022,120]
[339037447,1727162920643,150.0,0.00022,120]
[339037448,1727162921077,150.0,0.00022,120]
[339037449,1727162921572,150.0,0.00022,120]
[339037450,1727162922066,150.0,0.00022,120]
[339037451,1727162922543,150.0,0.00022,120]
[339037452,1727162922985,150.0,0.00022,120]
[339037453,1727162923107,150.0,0.00015,60]
[339037454,1727162923479,150.0,0.00022,120]
[339037455,1727162923544,150.0,0.00016,60]
[339037456,1727162924109,150.0,0.00017,60]
[339037457,1727162924181,150.0,0.00022,120]
[339037458,1727162924303,150.0,0.00018,60]
[339037459,1727162924408,150.0,0.00022,120]
[339037460,1727162924671,150.0,0.00019,60]
[339037461,1727162924880,150.0,0.00022,120]
[339037462,1727162924978,2133.64894812,0.000145,120]
[339037463,1727162925051,181.416323,0.0002,60]
[339037464,1727162925351,150.0,0.00022,120]
[339037465,1727162925808,150.0,0.00022,120]
[339037466,1727162925895,150.0,0.0002,120]
[339037467,1727162926252,160.472107,0.00021,120]
[339037468,1727162926336,150.0,0.00022,120]
[339037469,1727162926753,150.0,0.00022,120]
[339037470,1727162927303,150.0,0.00022,120]
[339037471,1727162927645,150.0,0.00022,120]
[339037472,1727162928043,290.0,0.00022,120]
[339037473,1727162928119,150.0,0.00022,120]
[339037474,1727162928819,150.0,0.00022,120]
[339037475,1727162929039,150.0,0.00022,120]
[339037476,1727162929446,150.0,0.00022,120]
[339037477,1727162929871,150.0,0.00022,120]
[339037478,1727162930354,150.0,0.00022,120]
[339037479,1727162930940,150.0,0.00022,120]
[339037480,1727162931375,150.0,0.00022,120]
[339037481,1727162931757,150.0,0.00022,120]
[339037482,1727162932229,150.0,0.00022,120]
[339037483,1727162932679,150.0,0.00022,120]
[339037484,1727162933606,150.0,0.00022,120]
[339037485,1727162933748,150.0,0.00022,120]
[339037486,1727162934052,150.0,0.00022,120]
[339037487,1727162934911,150.0,0.00022,120]
[339037488,1727162935115,150.0,0.00022,120]
[339037489,1727162935432,150.0,0.00022,120]
[339037490,1727162935884,150.0,0.00022,120]
[339037491,1727162936389,150.0,0.00022,120]
[339037492,1727162937017,150.0,0.00022,120]
[339037493,1727162937319,150.0,0.00022,120]
[339037494,1727162937805,150.0,0.00022,120]
[339037495,1727162938287,150.0,0.00022,120]
[339037496,1727162938884,150.0,0.00022,120]
[339037497,1727162939197,150.0,0.00022,120]
[339037498,1727162939717,150.0,0.00022,120]
[339037499,1727162940170,150.0,0.00022,120]
[339037500,1727162940686,150.0,0.00022,120]
[339037501,1727162941302,150.0,0.00022,120]
[339037502,1727162941823,150.0,0.00022,120]
[339037503,1727162941996,150.0,0.00022,120]
[339037504,1727162942546,150.0,0.00022,120]
[339037515,1727162953256,196.51,0.00013143,120]
[339037519,1727162953348,157.1,0.00013143,120]
[339037602,1727162955646,150.5,0.00013143,120]
[339037617,1727162956117,231.68,0.00013133,120]
[339037898,1727162977567,151.0,0.00021,60]
[339037900,1727162992291,510.0,0.00021917,120]
[339037901,1727163010289,234.1657168,0.00022,120]
[339037915,1727163031917,-206.49292276,0.00011492,2]
[339037918,1727163031928,-93.50707724,0.00011577,2]
[339037920,1727163031940,-156.49292276,0.00011577,2]
[339037922,1727163031950,-266.53918212,0.00011592,2]
[339037924,1727163031961,-340.46626436,0.00011592,2]
[339037926,1727163031972,-192.99455352,0.00011592,2]
[339037928,1727163031983,-102.45358832,0.00011673,2]
[339037930,1727163031994,-56.98641168,0.00011673,2]
[339037932,1727163032004,-200.0,0.00011708,2]
[339037933,1727163032014,-254.8,0.00011726,2]
[339037934,1727163032024,-242.53,0.00012093,2]
[339037935,1727163032034,-404.0366,0.000124,2]
[339037936,1727163032044,-158.09,0.00012445,2]
[339037937,1727163032053,-182.87,0.00012445,2]
[339037938,1727163032062,-150.99,0.00012445,2]
[339037939,1727163032073,-530.13,0.00012445,2]
[339037940,1727163032082,-499.99,0.00012499,2]
[339037941,1727163032091,-300.0,0.00012499,2]
[339037942,1727163032101,-507.301532,0.000125,2]
[339037943,1727163032113,-2990.669353,0.000125,2]
[339037944,1727163032124,-2202.3,0.000125,2]
[339037945,1727163032135,-1055.01,0.000125,2]
[339037946,1727163032147,-294.80900221,0.0001258,2]
[339037947,1727163032157,-150.0,0.00012598,2]
[339037948,1727163032167,-360.58080466,0.00012599,2]
[339037949,1727163032179,-8654.32189534,0.00012599,2]
[339037950,1727163032189,-500.0,0.00012599,2]
[339037951,1727163032198,-1303.85275503,0.00012599,2]
[339037952,1727163032210,-12552.98142732,0.00012599,2]
[339037953,1727163032221,-909.3594811,0.00012599,2]
[339037955,1727163032249,-6149.07558323,0.00012599,2]
[339037957,1727163032260,-300.0,0.00012599,2]
[339037959,1727163032271,-67.71895332,0.00012599,2]
[339037961,1727163032281,-5524.3293,0.00012599,2]
[339037963,1727163032290,-357.0158,0.00012599,2]
[339037965,1727163032300,-1750.4608,0.00012599,2]
[339037966,1727163032310,-777.7328961,0.00012599,2]
[339037967,1727163032322,-180.05783861,0.00012599,2]
[339037968,1727163032332,-777.73289606,0.00012621,2]
[339037969,1727163032341,-222.3781,0.0001263,2]
[339037970,1727163032350,-777.73289606,0.00012644,2]
[339037971,1727163032360,-777.73289606,0.00012666,2]
[339037972,1727163032369,-286.17813824,0.00012669,2]
[339037973,1727163032378,-3525.03969667,0.00012669,2]
[339037974,1727163032388,-22838.17753998,0.0001267,2]
[339037975,1727163032398,-1000.0,0.0001267,2]
[339037976,1727163032407,-1000.0,0.0001267,2]
[339037977,1727163032416,-1000.0,0.0001267,2]
[339037978,1727163032425,-1000.0,0.0001267,2]
[339037979,1727163032434,-1000.0,0.0001267,2]
[339037980,1727163032444,-1000.0,0.0001267,2]
[339037981,1727163032453,-1000.0,0.0001267,2]
[339037982,1727163032463,-1000.0,0.0001267,2]
[339037983,1727163032472,-1000.0,0.0001267,2]
[339037984,1727163032482,-1000.0,0.0001267,2]
[339037985,1727163032492,-1000.0,0.0001267,2]
[339037986,1727163032503,-1000.0,0.0001267,2]
[339037987,1727163032512,-1000.0,0.0001267,2]
[339037988,1727163032522,-1000.0,0.0001267,2]
[339037989,1727163032532,-1000.0,0.0001267,2]
[339037990,1727163032542,-1000.0,0.0001267,2]
[339037991,1727163032552,-1000.0,0.0001267,2]
[339037992,1727163032562,-1000.0,0.0001267,2]
[339037993,1727163032573,-1000.0,0.0001267,2]
[339037994,1727163032584,-1000.0,0.0001267,2]
[339037995,1727163032594,-1000.0,0.0001267,2]
[339037996,1727163032603,-1000.0,0.0001267,2]
[339037997,1727163032613,-1000.0,0.0001267,2]
[339037998,1727163032623,-1000.0,0.0001267,2]
[339037999,1727163032633,-682.63984334,0.0001267,2]
[339038000,1727163032643,-1871.0,0.0001268,2]
[339038001,1727163032653,-777.73289606,0.00012688,2]
[339038002,1727163032663,-72466.27415594,0.00012699,2]
[339038003,1727163032675,-1221.51950212,0.00012699,2]
[339038004,1727163032687,-15770.18434459,0.00012699,2]
[339038005,1727163032699,-2653.20000004,0.00012699,2]
[339038006,1727163032711,-3154.5966,0.00012699,2]
[339038007,1727163032722,-13115.76460994,0.00012699,2]
[339038008,1727163032734,-4901.08282077,0.00012699,2]
[339038009,1727163032746,-712.8352503,0.00012699,2]
[339038010,1727163032758,-404.0,0.00012699,2]
[339038011,1727163032770,-3345.75418598,0.00012699,2]
[339038012,1727163032782,-1758.98083205,0.00012699,2]
[339038013,1727163032793,-1198.16775,0.00012699,2]
[339038014,1727163032805,-999.915646,0.00012699,2]
[339038015,1727163032818,-1777.48768149,0.00012699,2]
[339038016,1727163032830,-496.77,0.00012699,2]
[339038017,1727163032847,-349.70936002,0.00012699,2]
[339038018,1727163032859,-563.69998346,0.00012699,2]
[339038019,1727163032906,-493.5770007,0.00012699,2]
[339038020,1727163032920,-264.82796935,0.00012699,2]
[339038021,1727163032931,-413.47322908,0.00012699,2]
[339038022,1727163032943,-125828.65977817,0.00012699,2]
[339038023,1727163032953,-4847.5663,0.00012699,2]
[339038024,1727163032963,-5317.98106535,0.000127,2]
[339038025,1727163032973,-12253.1699,0.000127,2]
[339038026,1727163032982,-905.3344,0.000127,2]
[339038027,1727163032992,-1000.0,0.000127,2]
[339038028,1727163033001,-222.0,0.0001271,2]
[339038029,1727163033011,-777.73289606,0.00012711,2]
[339038030,1727163033020,-777.73289606,0.00012733,2]
[339038031,1727163033030,-777.73289606,0.00012755,2]
[339038032,1727163033040,-777.73289606,0.00012778,2]
[339038033,1727163033050,-2974.72454401,0.00012798,2]
[339038034,1727163033060,-3012.27503538,0.00012798,2]
[339038035,1727163033070,-1924.6496,0.00012798,2]
[339038036,1727163033080,-37231.41520349,0.00012799,2]
[339038037,1727163033369,-17679.95869651,0.00012799,2]
[339038038,1727163033379,-14279.4226,0.00012799,2]
[339038039,1727163033389,-788.551,0.00012799,2]
[339038040,1727163033398,-632.6852,0.00012799,2]
[339038041,1727163033408,-171.94783731,0.00012799,2]
[339038042,1727163033418,-256.5263856,0.00012799,2]
[339038043,1727163033427,-172.78963925,0.00012799,2]
[339038044,1727163033437,-256.5263856,0.00012799,2]
[339038045,1727163033446,-256.5263856,0.000128,2]
[339038046,1727163033456,-256.5263856,0.000128,2]
[339038047,1727163033465,-405.49455236,0.000128,2]
[339038048,1727163033477,-28249.7451817,0.000128,2]
[339038049,1727163033488,-171.9478373,0.000128,2]
[339038050,1727163033497,-6582.86144886,0.000128,2]
[339038051,1727163033507,-256.5263856,0.000128,2]
[339038052,1727163033516,-930.4418375,0.000128,2]
[339038053,1727163033525,-777.73289606,0.000128,2]
[339038054,1727163033535,-150.0,0.00012806,2]
[339038055,1727163033544,-150.0,0.00012816,2]
[339038056,1727163033553,-1467.93633078,0.00012831,2]
[339038057,1727163033563,-372.638,0.00012864,2]
[339038058,1727163033573,-192.39998054,0.00012864,2]
[339038059,1727163033584,-170.67922754,0.00012873,2]
[339038060,1727163033594,-500.0,0.00012873,2]
[339038061,1727163033603,-500.0,0.00012873,2]
[339038062,1727163033613,-500.0,0.00012873,2]
[339038063,1727163033623,-150.0,0.00012875,2]
[339038064,1727163033632,-150.0,0.00012879,2]
[339038065,1727163033642,-150.0,0.00012886,2]
[339038066,1727163033651,-152.9,0.00012889,2]
[339038067,1727163033660,-151.0,0.0001289,2]
[339038068,1727163033670,-151.0,0.0001289,2]
[339038069,1727163033679,-152.194616,0.0001289,2]
[339038070,1727163033688,-152.9,0.0001289,2]
[339038071,1727163033697,-152.9,0.0001289,2]
[339038072,1727163033707,-3013.54571348,0.0001289,2]
[339038073,1727163033716,-179.99,0.00012893,2]
[339038074,1727163033726,-151.0,0.00012893,2]
[339038075,1727163033735,-151.0,0.00012893,2]
[339038076,1727163033744,-151.921066,0.00012893,2]
[339038077,1727163033753,-234.932896,0.00012893,2]
[339038078,1727163033763,-234.932896,0.00012893,2]
[339038079,1727163033772,-151.0,0.00012893,2]
[339038080,1727163033784,-151.0,0.00012893,2]
[339038081,1727163033794,-151.0,0.00012893,2]
[339038082,1727163033803,-151.0,0.00012893,2]
[339038083,1727163033814,-151.0,0.00012893,2]
[339038084,1727163033824,-151.0,0.00012893,2]
[339038085,1727163033837,-196.799888,0.00012893,2]
[339038086,1727163033847,-151.0,0.00012893,2]
[339038087,1727163033857,-151.0,0.00012893,2]
[339038088,1727163033866,-151.0,0.00012893,2]
[339038089,1727163033877,-151.27854,0.00012893,2]
[339038090,1727163033888,-151.0,0.00012893,2]
[339038091,1727163033897,-151.0,0.00012893,2]
[339038092,1727163033908,-151.0,0.00012893,2]
[339038093,1727163033919,-338.783549,0.00012893,2]
[339038094,1727163033929,-338.783549,0.00012893,2]
[339038095,1727163033938,-151.0,0.00012893,2]
[339038096,1727163033948,-151.576874,0.00012893,2]
[339038097,1727163033958,-151.0,0.00012893,2]
[339038098,1727163033968,-151.0,0.00012893,2]
[339038099,1727163033977,-151.0,0.00012893,2]
[339038100,1727163033987,-151.135201,0.00012893,2]
[339038101,1727163033996,-158.040534,0.00012893,2]
[339038102,1727163034006,-158.040534,0.00012893,2]
[339038103,1727163034016,-500.0,0.00012898,2]
[339038104,1727163034026,-586.29282578,0.00012898,2]
[339038105,1727163034035,-214.03687857,0.00012898,2]
[339038106,1727163034045,-288.07322174,0.00012898,2]
[339038107,1727163034055,-151.0,0.00012898,2]
[339038108,1727163034065,-151.282534,0.00012898,2]
[339038109,1727163034075,-151.210161,0.00012898,2]
[339038110,1727163034084,-151.0,0.00012898,2]
[339038111,1727163034094,-167.928931,0.00012898,2]
[339038112,1727163034104,-151.0,0.00012898,2]
[339038113,1727163034114,-152.743986,0.00012898,2]
[339038114,1727163034124,-151.163092,0.00012898,2]
[339038115,1727163034134,-151.0,0.00012898,2]
[339038116,1727163034144,-151.0,0.00012898,2]
[339038117,1727163034154,-254.616299,0.00012898,2]
[339038118,1727163034163,-254.616299,0.00012898,2]
[339038119,1727163034173,-504.0,0.00012899,2]
[339038120,1727163034183,-1164.93561715,0.00012899,2]
[339038121,1727163034192,-428.89110683,0.00012899,2]
[339038122,1727163034202,-16254.91892058,0.00012899,2]
[339038123,1727163034211,-17653.30170183,0.00012899,2]
[339038126,1727163038130,-151.0,0.00012893,2]
[339038128,1727163038139,-3574.39043297,0.00012899,2]
[339038129,1727163038151,-10057.58,0.00012899,2]
[339038130,1727163038162,-1323.56384653,0.00012899,2]
[339038131,1727163038173,-443.13092382,0.00012899,2]
[339038132,1727163038184,-1043.64469996,0.00012899,2]
[339038133,1727163038196,-515.28705452,0.00012899,2]
[339038134,1727163038207,-1107.58937578,0.00012899,2]
[339038135,1727163038219,-575.0,0.00012899,2]
[339038136,1727163038230,-6625.29191543,0.00012899,2]
[339038137,1727163038366,-54424.44962291,0.00012899,2]
[339038138,1727163038378,-3955.01642289,0.00012899,2]
[339038139,1727163038391,-17739.05426569,0.00012899,2]
[339038140,1727163038402,-4183.97458834,0.00012899,2]
[339038141,1727163038413,-326.45,0.00012899,2]
[339038142,1727163038424,-550.09060635,0.00012899,2]
[339038143,1727163038434,-1100.67125844,0.00012899,2]
[339038144,1727163038445,-19932.1079245,0.00012899,2]
[339038145,1727163038457,-1537.30297559,0.00012899,2]
[339038146,1727163038467,-2234.28306925,0.00012899,2]
[339038147,1727163038479,-709.08266212,0.00012899,2]
[339038148,1727163038491,-6379.62144594,0.00012899,2]
[339038149,1727163038502,-4359.03,0.00012899,2]
[339038150,1727163038513,-794.849586,0.00012899,2]
[339038151,1727163038524,-307.07755376,0.00012899,2]
[339038152,1727163038536,-3861.57904239,0.00012899,2]
[339038153,1727163038559,-538.72382392,0.00012899,2]
[339038154,1727163038571,-469.45,0.00012899,2]
[339038155,1727163038592,-28044.33900504,0.00012899,2]
[339038156,1727163038603,-666.4,0.00012899,2]
[339038157,1727163038614,-6470.06369736,0.00012899,2]
[339038158,1727163038625,-300.001004,0.00012899,2]
[339038159,1727163038657,-542.99403541,0.00012899,2]
[339038160,1727163038668,-23183.27718853,0.00012899,2]
[339038282,1727163040013,-17049.04648691,0.00012899,2]
[339038285,1727163040025,-310.14703584,0.00012899,2]
[339038289,1727163040060,-2544.08778353,0.00012899,2]
[339038291,1727163040073,-416.47603396,0.00012899,2]
[339038294,1727163040085,-24104.6103854,0.00012899,2]
[339038296,1727163040096,-347.78074878,0.00012899,2]
[339038306,1727163040190,-307.46014093,0.00012899,2]
[339038309,1727163040201,-503.4787228,0.00012899,2]
[339038311,1727163040213,-3593.08737091,0.00012899,2]
[339038313,1727163040225,-322.85018007,0.00012899,2]
[339038315,1727163040237,-540.18000005,0.00012899,2]
[339038317,1727163040248,-2833.72264,0.00012899,2]
[339038319,1727163040260,-4021.55597981,0.00012899,2]
[339038323,1727163040284,-1079.800005,0.00012899,2]
[339038325,1727163040295,-6174.05112222,0.00012899,2]
[339038327,1727163040307,-1272.77759084,0.00012899,2]
[339038330,1727163040321,-5520.4318433,0.00012899,2]
[339038332,1727163040333,-324.35791438,0.00012899,2]
[339038335,1727163040358,-540.56760573,0.00012899,2]
[339038338,1727163040372,-635.785975,0.00012899,2]
[339038588,1727163042987,-27020.25076693,0.00012899,2]
[339038590,1727163042999,-2694.80145435,0.00012899,2]
[339038593,1727163043020,-311.308985,0.00012899,2]
[339038598,1727163043055,-935.898057,0.00012899,2]
[339038600,1727163043066,-6428.28499988,0.00012899,2]
[339038602,1727163043078,-22234.19,0.00012899,2]
[339038611,1727163043147,-85239.40377378,0.00012899,2]
[339038613,1727163043157,-263175.94300695,0.00012899,2]
[339038615,1727163043168,-321077.77677138,0.00012899,2]
[339038617,1727163043179,-26128.75078804,0.00012899,2]
[339038619,1727163043188,-298.742767,0.00012899,2]
[339038621,1727163043198,-298.742767,0.00012899,2]
[339038623,1727163043207,-298.742767,0.00012899,2]
[339038625,1727163043217,-298.742767,0.00012899,2]
[339038627,1727163043227,-152.577322,0.00012899,2]
[339038629,1727163043236,-349.114058,0.00012899,2]
[339038631,1727163043247,-349.114058,0.00012899,2]
[339038634,1727163043258,-349.114058,0.00012899,2]
[339038635,1727163043267,-349.114058,0.00012899,2]
[339038638,1727163043277,-423.575,0.00012899,2]
[339038640,1727163043287,-423.575,0.00012899,2]
[339038642,1727163043297,-423.575,0.00012899,2]
[339038644,1727163043307,-423.575,0.00012899,2]
[339038646,1727163043318,-151.0,0.00012899,2]
[339038648,1727163043327,-151.15725,0.00012899,2]
[339038650,1727163043336,-151.0,0.00012899,2]
[339038652,1727163043345,-151.101319,0.00012899,2]
[339038654,1727163043355,-218.992534,0.00012899,2]
[339038656,1727163043364,-151.0,0.00012899,2]
[339038658,1727163043374,-151.0,0.00012899,2]
[339038660,1727163043384,-151.274471,0.00012899,2]
[339038662,1727163043393,-151.174595,0.00012899,2]
[339038664,1727163043403,-151.0,0.00012899,2]
[339038666,1727163043411,-151.0,0.00012899,2]
[339038668,1727163043421,-151.0,0.00012899,2]
[339038670,1727163043431,-151.426871,0.00012899,2]
[339038672,1727163043441,-151.0,0.00012899,2]
[339038674,1727163043451,-254.616299,0.00012899,2]
[339038676,1727163043460,-254.616299,0.00012899,2]
[339038678,1727163043469,-151.0,0.00012899,2]
[339038680,1727163043478,-151.0,0.00012899,2]
[339038682,1727163043487,-152.734247,0.00012899,2]
[339038684,1727163043496,-293.755083,0.00012899,2]
[339038686,1727163043506,-154.588232,0.00012899,2]
[339038688,1727163043515,-151.0,0.00012899,2]
[339038690,1727163043524,-298.0,0.00012899,2]
[339038692,1727163043533,-151.217501,0.00012899,2]
[339038694,1727163043542,-151.176,0.00012899,2]
[339038696,1727163043551,-151.285018,0.00012899,2]
[339038698,1727163043560,-151.0,0.00012899,2]
[339038700,1727163043570,-155.496787,0.00012899,2]
[339038702,1727163043579,-151.0,0.00012899,2]
[339038704,1727163043588,-151.0,0.00012899,2]
[339038706,1727163043598,-151.0,0.00012899,2]
[339038708,1727163043607,-151.0,0.00012899,2]
[339038710,1727163043616,-151.364273,0.00012899,2]
[339038712,1727163043625,-151.0,0.00012899,2]
[339038714,1727163043635,-151.0,0.00012899,2]
[339038716,1727163043645,-347.037844,0.00012899,2]
[339038718,1727163043656,-347.037844,0.00012899,2]
[339038720,1727163043665,-347.037844,0.00012899,2]
[339038722,1727163043675,-347.037844,0.00012899,2]
[339038724,1727163043684,-151.327539,0.00012899,2]
[339038726,1727163043694,-232.730384,0.00012899,2]
[339038728,1727163043704,-151.0,0.00012899,2]
[339038730,1727163043713,-151.0,0.00012899,2]
[339038732,1727163043722,-151.0,0.00012899,2]
[339038734,1727163043731,-151.0,0.00012899,2]
[339038736,1727163043740,-234.932896,0.00012899,2]
[339038738,1727163043749,-234.932896,0.00012899,2]
[339038740,1727163043759,-234.932896,0.00012899,2]
[339038742,1727163043768,-234.932896,0.00012899,2]
[339038744,1727163043777,-151.0,0.00012899,2]
[339038746,1727163043786,-151.0,0.00012899,2]
[339038748,1727163043795,-151.0,0.00012899,2]
[339038750,1727163043805,-246.880068,0.00012899,2]
[339038752,1727163043814,-151.0,0.00012899,2]
[339038754,1727163043824,-151.0,0.00012899,2]
[339038756,1727163043835,-151.0,0.00012899,2]
[339038758,1727163043845,-250.058468,0.00012899,2]
[339038760,1727163043854,-151.0,0.00012899,2]
[339038762,1727163043863,-151.0,0.00012899,2]
[339038764,1727163043872,-151.090009,0.00012899,2]
[339038766,1727163043882,-151.0,0.00012899,2]
[339038768,1727163043891,-151.0,0.00012899,2]
[339038770,1727163043901,-151.0,0.00012899,2]
[339038772,1727163043911,-151.0,0.00012899,2]
[339038774,1727163043920,-338.783549,0.00012899,2]
[339038776,1727163043930,-338.783549,0.00012899,2]
[339038778,1727163043939,-338.783549,0.00012899,2]
[339038780,1727163043948,-338.783549,0.00012899,2]
[339038782,1727163043958,-151.0,0.00012899,2]
[339038784,1727163043967,-151.0,0.00012899,2]
[339038786,1727163043975,-151.789934,0.00012899,2]
[339038788,1727163043985,-151.0,0.00012899,2]
[339038790,1727163043994,-151.0,0.00012899,2]
[339038792,1727163044003,-158.040534,0.00012899,2]
[339038794,1727163044012,-158.040534,0.00012899,2]
[339038796,1727163044022,-158.040534,0.00012899,2]
[339038798,1727163044031,-151.0,0.00012899,2]
[339038799,1727163044039,-158.040534,0.00012899,2]
[339038801,1727163044048,-151.0,0.00012899,2]
[339038804,1727163044058,-260740.81856298,0.000129,2]
[339038833,1727163044327,-16513.05539984,0.000129,2]
[339038834,1727163044343,-297.59077079,0.000129,2]
[339038835,1727163044358,-466.23774456,0.000129,2]
[339038836,1727163044373,-883.32723249,0.000129,2]
[339038838,1727163044400,-3939.92439593,0.000129,2]
[339038843,1727163044440,-630.18302999,0.000129,2]
[339038845,1727163044451,-23785.41642775,0.000129,2]
[339038847,1727163044463,-1364.2199562,0.000129,2]
[339038989,1727163046069,-188.3834412,0.000128,2]
[339038990,1727163046080,-168.88163047,0.000129,2]
[339038991,1727163046092,-450.12499018,0.000129,2]
[339038992,1727163046194,-213.65866995,0.000129,2]
[339038993,1727163046217,-13581.70492446,0.000129,2]
[339038994,1727163046248,-608.35712949,0.000129,2]
[339038995,1727163046259,-1900.0,0.000129,2]
[339038996,1727163046273,-354.11893621,0.000129,2]
[339038997,1727163046284,-695.19249147,0.000129,2]
[339038998,1727163073212,939.0,0.00013143,120]
[339038999,1727163073691,939.0,0.00013133,120]
[339039000,1727163074338,939.0,0.00013123,120]
[339039001,1727163074796,939.0,0.00013143,120]
[339039002,1727163075662,939.0,0.00013133,120]
[339039003,1727163075836,939.0,0.00013123,120]
[339039004,1727163076216,939.0,0.00013143,120]
[339039005,1727163076766,939.0,0.00013133,120]
[339039006,1727163077215,939.0,0.00013143,120]
[339039007,1727163077678,947.0,0.00013133,120]
[339039008,1727163199790,657.284072,0.00011,2]
[339039009,1727163199816,849.70691411,0.00011,2]
[339039010,1727163224516,150.0,0.00015,60]
[339039011,1727163224962,150.0,0.00016,60]
[339039012,1727163225358,150.0,0.00017,60]
[339039013,1727163225788,150.0,0.00018,60]
[339039014,1727163226076,500.0,0.00021951,120]
[339039015,1727163226264,150.0,0.00019,60]
[339039016,1727163227378,181.416323,0.0002,60]
[339039017,1727163228695,150.0,0.0002,120]
[339039018,1727163229156,160.472107,0.00021,120]
[339039019,1727163233415,2000.0,0.00021951,120]
[339039020,1727163248018,500.0,0.00021951,120]
[339039021,1727163376335,153.63,0.00010959,2]
[339039022,1727163434532,150.5,0.00013143,120]
[339039023,1727163434852,231.68,0.00013133,120]
[339039030,1727163541477,150.0,0.00015,60]
[339039031,1727163541952,150.0,0.00016,60]
[339039032,1727163542384,150.0,0.00017,60]
[339039033,1727163542893,150.0,0.00018,60]
[339039034,1727163543323,150.0,0.00019,60]
[339039035,1727163543711,181.416323,0.0002,60]
[339039036,1727163544732,150.0,0.0002,120]
[339039037,1727163545117,160.472107,0.00021,120]
[339039038,1727163553105,939.0,0.00013143,120]
[339039039,1727163553587,939.0,0.00013133,120]
[339039040,1727163553708,196.51,0.00013143,120]
[339039041,1727163553893,150.5,0.00013143,120]
[339039042,1727163554041,939.0,0.00013123,120]
[339039043,1727163554376,231.68,0.00013133,120]
[339039044,1727163554500,939.0,0.00013143,120]
[339039045,1727163555056,939.0,0.00013133,120]